[Event "*** Titled Tuesday Blitz"]
[Site "Chess.com"]
[Date "2020.05.05"]
[Round "1"]
[White "mirceaparligras"]
[Black "Oligan22"]
[Result "1-0"]
[WhiteElo "2660"]
[BlackElo "2332"]
[TimeControl "180+1"]
[EndTime "10:07:22 PDT"]
[Termination "mirceaparligras won on time"]

1. Nc3 {[%clk 0:03:00.9]} 1... d5 {[%clk 0:02:57.8]} 2. e4 {[%clk 0:02:59.7]}
2... dxe4 {[%clk 0:02:55]} 3. Nxe4 {[%clk 0:02:59]} 3... Nf6 {[%clk 0:02:55.1]}
4. Nxf6+ {[%clk 0:02:57.2]} 4... exf6 {[%clk 0:02:56]} 5. Bc4 {[%clk 0:02:53]}
5... Bd6 {[%clk 0:02:50.5]} 6. Nf3 {[%clk 0:02:45.9]} 6... O-O {[%clk
0:02:49.7]} 7. O-O {[%clk 0:02:46]} 7... Bg4 {[%clk 0:02:37]} 8. d4 {[%clk
0:02:44.5]} 8... Nd7 {[%clk 0:02:33.7]} 9. c3 {[%clk 0:02:43.9]} 9... Re8 {[%clk
0:02:25.9]} 10. h3 {[%clk 0:02:32.9]} 10... Bh5 {[%clk 0:02:21.1]} 11. Bd2
{[%clk 0:02:24.3]} 11... c6 {[%clk 0:02:16.9]} 12. g4 {[%clk 0:02:13]} 12... Bg6
{[%clk 0:02:16.5]} 13. Nh4 {[%clk 0:02:13.4]} 13... Nb6 {[%clk 0:02:01.8]} 14.
Bb3 {[%clk 0:02:09.5]} 14... Be4 {[%clk 0:01:39.7]} 15. Re1 {[%clk 0:01:54.9]}
15... Bc7 {[%clk 0:01:29.6]} 16. Ng2 {[%clk 0:01:46.7]} 16... Nd5 {[%clk
0:01:22.9]} 17. f3 {[%clk 0:01:31.7]} 17... Bg6 {[%clk 0:01:17.8]} 18. Rxe8+
{[%clk 0:01:26.7]} 18... Qxe8 {[%clk 0:01:17]} 19. Bxd5 {[%clk 0:01:02.5]} 19...
cxd5 {[%clk 0:01:17.9]} 20. Nf4 {[%clk 0:00:57.1]} 20... Qb5 {[%clk 0:01:01.4]}
21. Qb3 {[%clk 0:00:54.4]} 21... Qxb3 {[%clk 0:00:34.9]} 22. axb3 {[%clk
0:00:55.3]} 22... Bxf4 {[%clk 0:00:34.1]} 23. Bxf4 {[%clk 0:00:55.2]} 23... a6
{[%clk 0:00:21.3]} 24. Re1 {[%clk 0:00:53.8]} 24... Rd8 {[%clk 0:00:19.6]} 25.
Re7 {[%clk 0:00:52.6]} 25... b5 {[%clk 0:00:16.8]} 26. b4 {[%clk 0:00:50.9]}
26... h5 {[%clk 0:00:15.2]} 27. Kf2 {[%clk 0:00:50.3]} 27... hxg4 {[%clk
0:00:15.3]} 28. hxg4 {[%clk 0:00:50.4]} 28... Kf8 {[%clk 0:00:15.7]} 29. Ra7
{[%clk 0:00:49.8]} 29... Bd3 {[%clk 0:00:15.3]} 30. Rxa6 {[%clk 0:00:47.4]}
30... Re8 {[%clk 0:00:15.3]} 31. Be3 {[%clk 0:00:47.3]} 31... f5 {[%clk
0:00:13.7]} 32. gxf5 {[%clk 0:00:45.5]} 32... Bxf5 {[%clk 0:00:12.8]} 33. Rd6
{[%clk 0:00:46.1]} 33... Be6 {[%clk 0:00:12.1]} 34. Rb6 {[%clk 0:00:44.5]} 34...
Bd7 {[%clk 0:00:12.4]} 35. Rb7 {[%clk 0:00:44.4]} 35... Bf5 {[%clk 0:00:11.2]}
36. Rxb5 {[%clk 0:00:43.4]} 36... Be6 {[%clk 0:00:07.8]} 37. Rc5 {[%clk
0:00:41.1]} 37... Ra8 {[%clk 0:00:07]} 38. Ra5 {[%clk 0:00:37.8]} 38... Re8
{[%clk 0:00:06.1]} 39. b5 {[%clk 0:00:37.7]} 39... g6 {[%clk 0:00:03.9]} 40. b6
{[%clk 0:00:37.6]} 40... Rb8 {[%clk 0:00:04.4]} 41. Rb5 {[%clk 0:00:37.5]} 41...
Rb7 {[%clk 0:00:04.5]} 42. Bf4 {[%clk 0:00:37.3]} 42... Bd7 {[%clk 0:00:05.4]}
43. Rb4 {[%clk 0:00:37]} 43... Bc6 {[%clk 0:00:05.3]} 44. Bc7 {[%clk 0:00:36.9]}
44... Ke7 {[%clk 0:00:05.7]} 45. Rb3 {[%clk 0:00:37.1]} 45... Kd7 {[%clk
0:00:05.8]} 46. Ra3 {[%clk 0:00:37.5]} 46... f6 {[%clk 0:00:05.3]} 47. Ra1
{[%clk 0:00:35.5]} 1-0

[Event "*** Titled Tuesday Blitz"]
[Site "Chess.com"]
[Date "2020.05.05"]
[Round "1"]
[White "sergiochess83"]
[Black "erlesfar"]
[Result "0-1"]
[WhiteElo "2814"]
[BlackElo "2444"]
[TimeControl "180+1"]
[EndTime "10:07:23 PDT"]
[Termination "erlesfar won by resignation"]

1. e4 {[%clk 0:03:00.9]} 1... c5 {[%clk 0:02:58.1]} 2. Nf3 {[%clk 0:03:00.6]}
2... e6 {[%clk 0:02:58]} 3. d4 {[%clk 0:03:00.4]} 3... cxd4 {[%clk 0:02:57.9]}
4. Nxd4 {[%clk 0:03:01.3]} 4... Nc6 {[%clk 0:02:57.9]} 5. Nc3 {[%clk 0:03:01.4]}
5... Qc7 {[%clk 0:02:57.3]} 6. g3 {[%clk 0:03:01.5]} 6... a6 {[%clk 0:02:55.7]}
7. Bg2 {[%clk 0:03:01.6]} 7... Nf6 {[%clk 0:02:54.6]} 8. O-O {[%clk 0:03:00.4]}
8... h5 {[%clk 0:02:48.6]} 9. h3 {[%clk 0:02:50.2]} 9... h4 {[%clk 0:02:40.7]}
10. g4 {[%clk 0:02:47.2]} 10... Nxd4 {[%clk 0:02:40.3]} 11. Qxd4 {[%clk
0:02:46.3]} 11... Bc5 {[%clk 0:02:39.9]} 12. Qd3 {[%clk 0:02:45.6]} 12... Qg3
{[%clk 0:02:21.8]} 13. Bg5 {[%clk 0:02:20]} 13... Nxg4 {[%clk 0:02:05]} 14. hxg4
{[%clk 0:01:20]} 14... Qxg4 {[%clk 0:01:57.9]} 15. Bd2 {[%clk 0:01:19]} 15... h3
{[%clk 0:01:55]} 16. Qf3 {[%clk 0:01:19]} 16... Qxg2+ {[%clk 0:01:50.9]} 17.
Qxg2 {[%clk 0:01:19.2]} 17... hxg2 {[%clk 0:01:49.3]} 18. Kxg2 {[%clk
0:01:20.1]} 18... b5 {[%clk 0:01:30.5]} 19. Rh1 {[%clk 0:01:20.1]} 19... O-O
{[%clk 0:01:29]} 20. Rh5 {[%clk 0:01:15.8]} 20... Bd4 {[%clk 0:01:14.4]} 21. a4
{[%clk 0:01:08.6]} 21... Bb7 {[%clk 0:01:07.3]} 22. f3 {[%clk 0:01:02.1]} 22...
b4 {[%clk 0:01:05.3]} 23. Ne2 {[%clk 0:01:01.3]} 23... Bxb2 {[%clk 0:00:59.5]}
24. Rb1 {[%clk 0:00:59.3]} 24... Bf6 {[%clk 0:00:56.5]} 25. Bxb4 {[%clk
0:00:52.4]} 25... Rfc8 {[%clk 0:00:55.1]} 26. c3 {[%clk 0:00:30.3]} 26... g6
{[%clk 0:00:53.6]} 27. Rh3 {[%clk 0:00:19.7]} 27... d5 {[%clk 0:00:53.1]} 28.
Bd6 {[%clk 0:00:17.9]} 28... Bc6 {[%clk 0:00:52.1]} 29. e5 {[%clk 0:00:18.1]}
29... Bg7 {[%clk 0:00:51.4]} 30. a5 {[%clk 0:00:18.3]} 30... Bb5 {[%clk
0:00:49.6]} 31. Nd4 {[%clk 0:00:18.6]} 31... Rxc3 {[%clk 0:00:48.6]} 32. Nxb5
{[%clk 0:00:18.3]} 32... axb5 {[%clk 0:00:47]} 33. Rxb5 {[%clk 0:00:19.2]} 33...
Rc2+ {[%clk 0:00:46.1]} 34. Kg3 {[%clk 0:00:18.9]} 34... Ra2 {[%clk 0:00:45.3]}
35. Bc7 {[%clk 0:00:13.9]} 35... d4 {[%clk 0:00:44.2]} 36. Rh2 {[%clk 0:00:11]}
36... Rxh2 {[%clk 0:00:26.6]} 37. Kxh2 {[%clk 0:00:11.1]} 37... Rc8 {[%clk
0:00:27]} 38. Bd6 {[%clk 0:00:05.1]} 38... d3 {[%clk 0:00:26.8]} 39. Rb1 {[%clk
0:00:05.1]} 39... d2 {[%clk 0:00:26]} 40. Rd1 {[%clk 0:00:05]} 40... Bh6 {[%clk
0:00:25.9]} 41. Kg3 {[%clk 0:00:04.6]} 41... Rc1 {[%clk 0:00:24.8]} 0-1

[Event "*** Titled Tuesday Blitz"]
[Site "Chess.com"]
[Date "2020.05.05"]
[Round "1"]
[White "Muguet7"]
[Black "Konavets"]
[Result "0-1"]
[WhiteElo "2462"]
[BlackElo "2943"]
[TimeControl "180+1"]
[EndTime "10:07:24 PDT"]
[Termination "Konavets won by checkmate"]

1. d4 {[%clk 0:02:59]} 1... Nf6 {[%clk 0:02:58.7]} 2. c4 {[%clk 0:02:58.6]} 2...
e6 {[%clk 0:02:52.9]} 3. Nf3 {[%clk 0:02:58.3]} 3... b6 {[%clk 0:02:52]} 4. g3
{[%clk 0:02:58.1]} 4... Ba6 {[%clk 0:02:51.4]} 5. b3 {[%clk 0:02:48.8]} 5... d5
{[%clk 0:02:50.8]} 6. Bg2 {[%clk 0:02:48.2]} 6... Be7 {[%clk 0:02:50.6]} 7. O-O
{[%clk 0:02:47.6]} 7... O-O {[%clk 0:02:50.7]} 8. Nbd2 {[%clk 0:02:47.1]} 8...
c5 {[%clk 0:02:50.2]} 9. Bb2 {[%clk 0:02:46.7]} 9... Nc6 {[%clk 0:02:48.7]} 10.
cxd5 {[%clk 0:02:38.7]} 10... exd5 {[%clk 0:02:47.2]} 11. Rc1 {[%clk 0:02:35.6]}
11... Re8 {[%clk 0:02:47.3]} 12. Re1 {[%clk 0:02:33.4]} 12... Rc8 {[%clk
0:02:44.9]} 13. dxc5 {[%clk 0:02:31]} 13... Bxc5 {[%clk 0:02:44.2]} 14. e3
{[%clk 0:02:26.2]} 14... Nb4 {[%clk 0:02:43.1]} 15. Ne5 {[%clk 0:02:13.6]} 15...
Nxa2 {[%clk 0:02:35.7]} 16. Ra1 {[%clk 0:02:09.4]} 16... Nb4 {[%clk 0:02:36]}
17. Ndf3 {[%clk 0:01:59.9]} 17... Bd6 {[%clk 0:02:29.2]} 18. Bf1 {[%clk
0:01:50.9]} 18... Bxf1 {[%clk 0:02:27.7]} 19. Rxf1 {[%clk 0:01:50.7]} 19... a5
{[%clk 0:02:28.4]} 20. Nd3 {[%clk 0:01:47.7]} 20... Nc6 {[%clk 0:02:14.6]} 21.
Rc1 {[%clk 0:01:41.9]} 21... Ne4 {[%clk 0:02:14.3]} 22. Nd4 {[%clk 0:01:34.2]}
22... Qd7 {[%clk 0:01:50.7]} 23. Qh5 {[%clk 0:01:15]} 23... Nxd4 {[%clk
0:01:48.9]} 24. Bxd4 {[%clk 0:01:13.3]} 24... Rxc1 {[%clk 0:01:33.6]} 25. Nxc1
{[%clk 0:01:13.1]} 25... Bc5 {[%clk 0:01:30.5]} 26. Ne2 {[%clk 0:01:10.1]} 26...
Nd2 {[%clk 0:01:28.9]} 27. Rd1 {[%clk 0:01:09.7]} 27... Nxb3 {[%clk 0:01:28.7]}
28. Bxc5 {[%clk 0:01:06.2]} 28... Nxc5 {[%clk 0:01:29.6]} 29. Rxd5 {[%clk
0:01:05.6]} 29... Qe7 {[%clk 0:01:13.6]} 30. Nd4 {[%clk 0:01:04.6]} 30... g6
{[%clk 0:01:13.7]} 31. Qg4 {[%clk 0:01:03.1]} 31... Qf6 {[%clk 0:01:13.5]} 32.
h4 {[%clk 0:00:54.8]} 32... a4 {[%clk 0:01:13.5]} 33. Nb5 {[%clk 0:00:53.7]}
33... Qc6 {[%clk 0:01:09.9]} 34. Qc4 {[%clk 0:00:52.1]} 34... Ra8 {[%clk
0:01:00.5]} 35. Rd6 {[%clk 0:00:50.7]} 35... Qe4 {[%clk 0:01:00]} 36. Qa2 {[%clk
0:00:41.4]} 36... Nb3 {[%clk 0:00:44.8]} 37. Rxb6 {[%clk 0:00:39.2]} 37... Qb4
{[%clk 0:00:44.7]} 38. Rb7 {[%clk 0:00:32.6]} 38... Rf8 {[%clk 0:00:44.5]} 39.
Qc2 {[%clk 0:00:29.4]} 39... Na5 {[%clk 0:00:41.6]} 40. Rb6 {[%clk 0:00:28.1]}
40... a3 {[%clk 0:00:37.4]} 41. Qa2 {[%clk 0:00:27.8]} 41... Nc4 {[%clk
0:00:36.9]} 42. Rc6 {[%clk 0:00:26.6]} 42... Ne5 {[%clk 0:00:36]} 43. Rb6 {[%clk
0:00:23.9]} 43... Qc5 {[%clk 0:00:35]} 44. Rb7 {[%clk 0:00:23.2]} 44... Qc6
{[%clk 0:00:34.2]} 45. Re7 {[%clk 0:00:15.2]} 45... Nf3+ {[%clk 0:00:34.1]} 46.
Kf1 {[%clk 0:00:12.8]} 46... Qxb5+ {[%clk 0:00:33.7]} 47. Kg2 {[%clk 0:00:12.9]}
47... Qc6 {[%clk 0:00:32.2]} 48. Qxa3 {[%clk 0:00:11.9]} 48... Nxh4+ {[%clk
0:00:31.8]} 49. Kh3 {[%clk 0:00:11.7]} 49... Qh1+ {[%clk 0:00:31.5]} 50. Kg4
{[%clk 0:00:11.7]} 50... Qf3+ {[%clk 0:00:32]} 51. Kxh4 {[%clk 0:00:11.5]} 51...
Qh5# {[%clk 0:00:32.1]} 0-1

[Event "*** Titled Tuesday Blitz"]
[Site "Chess.com"]
[Date "2020.05.05"]
[Round "1"]
[White "Ave_Mariia"]
[Black "ChessAintFun"]
[Result "0-1"]
[WhiteElo "2300"]
[BlackElo "2621"]
[TimeControl "180+1"]
[EndTime "10:07:24 PDT"]
[Termination "ChessAintFun won by resignation"]

1. d4 {[%clk 0:03:00.9]} 1... Nf6 {[%clk 0:02:58.8]} 2. c4 {[%clk 0:03:00.8]}
2... e6 {[%clk 0:02:58.7]} 3. g3 {[%clk 0:03:00.5]} 3... Bb4+ {[%clk 0:02:58.1]}
4. Bd2 {[%clk 0:03:00.2]} 4... Be7 {[%clk 0:02:58.4]} 5. Nf3 {[%clk 0:02:59.2]}
5... d5 {[%clk 0:02:59.1]} 6. Bg2 {[%clk 0:02:59.3]} 6... O-O {[%clk 0:02:59.4]}
7. O-O {[%clk 0:02:59.4]} 7... c6 {[%clk 0:02:59.5]} 8. Qc2 {[%clk 0:02:59.6]}
8... Nbd7 {[%clk 0:02:59]} 9. Bf4 {[%clk 0:02:59.7]} 9... b6 {[%clk 0:02:59]}
10. Nc3 {[%clk 0:02:49.5]} 10... dxc4 {[%clk 0:02:58.5]} 11. e4 {[%clk
0:02:45.6]} 11... a5 {[%clk 0:02:55.3]} 12. Rad1 {[%clk 0:02:41.3]} 12... b5
{[%clk 0:02:54.4]} 13. Ne5 {[%clk 0:02:26.5]} 13... Nxe5 {[%clk 0:02:47.8]} 14.
dxe5 {[%clk 0:02:25.7]} 14... Nd7 {[%clk 0:02:47.7]} 15. a4 {[%clk 0:02:20.5]}
15... Ba6 {[%clk 0:02:46.8]} 16. Rd2 {[%clk 0:01:34.6]} 16... Qc7 {[%clk
0:02:43.8]} 17. Rfd1 {[%clk 0:01:34]} 17... Rad8 {[%clk 0:02:43.3]} 18. axb5
{[%clk 0:01:02.7]} 18... cxb5 {[%clk 0:02:44.2]} 19. Rd6 {[%clk 0:00:54.2]}
19... Bxd6 {[%clk 0:02:43.4]} 20. exd6 {[%clk 0:00:54.6]} 20... Qc5 {[%clk
0:02:41.3]} 21. Be3 {[%clk 0:00:52.1]} 21... Qh5 {[%clk 0:02:34.8]} 22. f4
{[%clk 0:00:45.7]} 22... b4 {[%clk 0:02:31.3]} 23. Na4 {[%clk 0:00:41.4]} 23...
Bb5 {[%clk 0:02:25.4]} 24. Nb6 {[%clk 0:00:36.5]} 24... Rb8 {[%clk 0:01:59.4]}
25. Nxd7 {[%clk 0:00:34.4]} 25... Bxd7 {[%clk 0:01:59.9]} 26. e5 {[%clk
0:00:34.9]} 26... c3 {[%clk 0:01:52.5]} 27. bxc3 {[%clk 0:00:34.7]} 27... bxc3
{[%clk 0:01:51.7]} 28. Rf1 {[%clk 0:00:26.9]} 28... Rfc8 {[%clk 0:01:48.1]} 29.
Bd4 {[%clk 0:00:26.8]} 29... Rb2 {[%clk 0:01:45.7]} 30. Qe4 {[%clk 0:00:22.8]}
30... Bc6 {[%clk 0:01:36.4]} 31. Qxc6 {[%clk 0:00:20.4]} 31... Rxc6 {[%clk
0:01:37.3]} 32. d7 {[%clk 0:00:20.1]} 32... Rb8 {[%clk 0:01:14.4]} 33. Bxc6
{[%clk 0:00:19]} 33... c2 {[%clk 0:01:14.1]} 34. Bb6 {[%clk 0:00:18.6]} 34...
Qd1 {[%clk 0:01:12.9]} 35. Be3 {[%clk 0:00:14.8]} 35... Rd8 {[%clk 0:01:02.6]}
36. Ba4 {[%clk 0:00:14.6]} 36... Qd3 {[%clk 0:01:00.6]} 37. Kf2 {[%clk
0:00:12.5]} 37... g5 {[%clk 0:00:59.6]} 38. Rc1 {[%clk 0:00:11.9]} 38... Qa3
{[%clk 0:00:52.9]} 39. Bxc2 {[%clk 0:00:09.1]} 39... Rxd7 {[%clk 0:00:53.1]} 40.
Be4 {[%clk 0:00:08.9]} 40... a4 {[%clk 0:00:46.4]} 41. Rc8+ {[%clk 0:00:08.7]}
41... Kg7 {[%clk 0:00:46.9]} 42. fxg5 {[%clk 0:00:07.4]} 42... Qb2+ {[%clk
0:00:38.1]} 43. Kf3 {[%clk 0:00:06.9]} 43... Rd1 {[%clk 0:00:35.8]} 44. h4
{[%clk 0:00:06.4]} 44... Rf1+ {[%clk 0:00:35.8]} 45. Kg4 {[%clk 0:00:06.4]}
45... Qe2+ {[%clk 0:00:36.4]} 46. Kh3 {[%clk 0:00:04.7]} 46... Qxe3 {[%clk
0:00:36.1]} 47. Bg2 {[%clk 0:00:03.8]} 47... Rg1 {[%clk 0:00:35.1]} 48. h5
{[%clk 0:00:02.9]} 48... Qxg5 {[%clk 0:00:33.9]} 0-1

[Event "*** Titled Tuesday Blitz"]
[Site "Chess.com"]
[Date "2020.05.05"]
[Round "1"]
[White "WinstonSilvakov"]
[Black "LastHeroJr"]
[Result "0-1"]
[WhiteElo "2190"]
[BlackElo "2535"]
[TimeControl "180+1"]
[EndTime "10:07:24 PDT"]
[Termination "LastHeroJr won on time"]

1. d4 {[%clk 0:02:55.7]} 1... Nf6 {[%clk 0:02:59.4]} 2. e3 {[%clk 0:02:55]} 2...
g6 {[%clk 0:02:58.3]} 3. Bd3 {[%clk 0:02:55.1]} 3... Bg7 {[%clk 0:02:58.1]} 4.
Nd2 {[%clk 0:02:55.3]} 4... O-O {[%clk 0:02:58]} 5. f4 {[%clk 0:02:53.7]} 5...
d6 {[%clk 0:02:57.6]} 6. Ngf3 {[%clk 0:02:53.5]} 6... Nc6 {[%clk 0:02:55.2]} 7.
c3 {[%clk 0:02:37.9]} 7... e5 {[%clk 0:02:54.7]} 8. fxe5 {[%clk 0:02:22.5]} 8...
dxe5 {[%clk 0:02:55.6]} 9. Qe2 {[%clk 0:02:21.9]} 9... exd4 {[%clk 0:02:41.2]}
10. cxd4 {[%clk 0:02:20.8]} 10... Re8 {[%clk 0:02:41.6]} 11. O-O {[%clk
0:02:19.3]} 11... Nd5 {[%clk 0:02:28.3]} 12. Nb3 {[%clk 0:02:17.1]} 12... Qe7
{[%clk 0:01:51.2]} 13. e4 {[%clk 0:02:06.9]} 13... Ndb4 {[%clk 0:01:44]} 14. Bb1
{[%clk 0:02:03.3]} 14... Bg4 {[%clk 0:01:42.5]} 15. Rd1 {[%clk 0:01:51.5]} 15...
Rad8 {[%clk 0:01:39.3]} 16. Be3 {[%clk 0:01:31.6]} 16... a5 {[%clk 0:00:58]} 17.
a3 {[%clk 0:01:29.3]} 17... Na6 {[%clk 0:00:56.7]} 18. h3 {[%clk 0:01:28.9]}
18... Bxf3 {[%clk 0:00:56.5]} 19. Qxf3 {[%clk 0:01:27.5]} 19... a4 {[%clk
0:00:57]} 20. Nc1 {[%clk 0:01:22.1]} 20... Nxd4 {[%clk 0:00:56.7]} 21. Qf2
{[%clk 0:01:16.8]} 21... c5 {[%clk 0:00:45.4]} 22. Kh1 {[%clk 0:01:05.6]} 22...
Nc7 {[%clk 0:00:44.9]} 23. Re1 {[%clk 0:00:56.3]} 23... Nce6 {[%clk 0:00:43.7]}
24. Nd3 {[%clk 0:00:53.7]} 24... Nb3 {[%clk 0:00:42.7]} 25. Ra2 {[%clk
0:00:49.7]} 25... Ned4 {[%clk 0:00:40.7]} 26. Bf4 {[%clk 0:00:33.1]} 26... Qd7
{[%clk 0:00:34.4]} 27. Rf1 {[%clk 0:00:20.5]} 27... Qe6 {[%clk 0:00:28.9]} 28.
Nc1 {[%clk 0:00:18.8]} 28... Qc4 {[%clk 0:00:25.6]} 29. Nxb3 {[%clk 0:00:17]}
29... Nxb3 {[%clk 0:00:26.1]} 30. Bc2 {[%clk 0:00:14.6]} 30... Nd4 {[%clk
0:00:23.6]} 31. Bb1 {[%clk 0:00:05.1]} 31... Ne2 {[%clk 0:00:23.6]} 32. Re1
{[%clk 0:00:03.8]} 32... Nxf4 {[%clk 0:00:22.6]} 33. Qxf4 {[%clk 0:00:03.2]}
33... Be5 {[%clk 0:00:22.4]} 34. Qf3 {[%clk 0:00:03.2]} 34... Rd2 {[%clk
0:00:21.3]} 35. Rf1 {[%clk 0:00:04.1]} 35... Red8 {[%clk 0:00:18.6]} 36. b3
{[%clk 0:00:03.2]} 36... axb3 {[%clk 0:00:16.6]} 37. Rxd2 {[%clk 0:00:04.1]}
37... Rxd2 {[%clk 0:00:17.1]} 0-1

[Event "*** Titled Tuesday Blitz"]
[Site "Chess.com"]
[Date "2020.05.05"]
[Round "1"]
[White "NotFischer"]
[Black "Alohamora11"]
[Result "1/2-1/2"]
[WhiteElo "2147"]
[BlackElo "2508"]
[TimeControl "180+1"]
[EndTime "10:07:24 PDT"]
[Termination "Game drawn by repetition"]

1. d4 {[%clk 0:03:00.6]} 1... Nf6 {[%clk 0:02:57.4]} 2. Nf3 {[%clk 0:03:00.8]}
2... c5 {[%clk 0:02:57.5]} 3. g3 {[%clk 0:03:01.7]} 3... g6 {[%clk 0:02:49.8]}
4. Bg2 {[%clk 0:03:01.2]} 4... Bg7 {[%clk 0:02:50.3]} 5. O-O {[%clk 0:03:00.2]}
5... O-O {[%clk 0:02:45.8]} 6. c4 {[%clk 0:03:00.2]} 6... cxd4 {[%clk 0:02:44]}
7. Nxd4 {[%clk 0:03:00.3]} 7... Nc6 {[%clk 0:02:44.9]} 8. Nc3 {[%clk 0:02:59.3]}
8... Nxd4 {[%clk 0:02:41.6]} 9. Qxd4 {[%clk 0:02:58.4]} 9... d6 {[%clk
0:02:42.5]} 10. Qh4 {[%clk 0:02:57.4]} 10... Ng4 {[%clk 0:02:22.4]} 11. h3
{[%clk 0:02:44]} 11... Ne5 {[%clk 0:02:03.2]} 12. Bg5 {[%clk 0:02:42.7]} 12...
Re8 {[%clk 0:01:48.8]} 13. Rac1 {[%clk 0:02:32.9]} 13... Rb8 {[%clk 0:01:45.5]}
14. Rfd1 {[%clk 0:02:30.7]} 14... Be6 {[%clk 0:01:44.2]} 15. Nd5 {[%clk
0:02:26.7]} 15... Bxd5 {[%clk 0:01:39.6]} 16. cxd5 {[%clk 0:02:25.1]} 16... Qd7
{[%clk 0:01:25.5]} 17. e4 {[%clk 0:02:21.3]} 17... f6 {[%clk 0:01:13.5]} 18. Be3
{[%clk 0:02:05.7]} 18... b5 {[%clk 0:01:13.2]} 19. f4 {[%clk 0:02:03.5]} 19...
Nc4 {[%clk 0:01:12.9]} 20. Bd4 {[%clk 0:02:02.2]} 20... Rec8 {[%clk 0:01:05.8]}
21. Bf1 {[%clk 0:01:50.6]} 21... h6 {[%clk 0:00:47]} 22. Qg4 {[%clk 0:01:45.5]}
22... Qxg4 {[%clk 0:00:44.3]} 23. hxg4 {[%clk 0:01:46.4]} 23... a6 {[%clk
0:00:40.9]} 24. b3 {[%clk 0:01:40.9]} 24... Na5 {[%clk 0:00:40.9]} 25. Bd3
{[%clk 0:01:31.4]} 25... f5 {[%clk 0:00:30.4]} 26. Bxg7 {[%clk 0:01:29.4]} 26...
fxe4 {[%clk 0:00:30.6]} 27. Bxh6 {[%clk 0:01:18.6]} 27... exd3 {[%clk
0:00:29.8]} 28. Rxc8+ {[%clk 0:01:17.3]} 28... Rxc8 {[%clk 0:00:30.7]} 29. Rxd3
{[%clk 0:01:17.7]} 29... Rc2 {[%clk 0:00:31]} 30. a4 {[%clk 0:01:09.5]} 30... b4
{[%clk 0:00:19.4]} 31. Re3 {[%clk 0:01:09.1]} 31... Kf7 {[%clk 0:00:17.9]} 32.
Bg5 {[%clk 0:01:09.5]} 32... Rc7 {[%clk 0:00:13.9]} 33. Re4 {[%clk 0:01:09.7]}
33... Nxb3 {[%clk 0:00:12.6]} 34. Rxb4 {[%clk 0:01:08.8]} 34... Nd2 {[%clk
0:00:13.3]} 35. Rb6 {[%clk 0:01:02.9]} 35... Nf3+ {[%clk 0:00:11]} 36. Kf2
{[%clk 0:01:03.2]} 36... Nxg5 {[%clk 0:00:11.9]} 37. fxg5 {[%clk 0:01:03.4]}
37... a5 {[%clk 0:00:12]} 38. Rb5 {[%clk 0:01:03.1]} 38... Ra7 {[%clk
0:00:12.2]} 39. Ke3 {[%clk 0:01:02.9]} 39... Ke8 {[%clk 0:00:12.6]} 40. Kd4
{[%clk 0:01:01.5]} 40... Kd7 {[%clk 0:00:13.5]} 41. Kc4 {[%clk 0:00:54.1]} 41...
Rc7+ {[%clk 0:00:13.3]} 42. Kd4 {[%clk 0:00:53.4]} 42... Ra7 {[%clk 0:00:13.4]}
43. Kc4 {[%clk 0:00:53.6]} 43... Rc7+ {[%clk 0:00:13.4]} 44. Kd4 {[%clk
0:00:53.8]} 44... Rc1 {[%clk 0:00:08.4]} 45. Rxa5 {[%clk 0:00:53.2]} 45... Rg1
{[%clk 0:00:09]} 46. Ra7+ {[%clk 0:00:53.4]} 46... Kd8 {[%clk 0:00:09.6]} 47.
Ke4 {[%clk 0:00:51.5]} 47... Rxg3 {[%clk 0:00:08.7]} 48. Kf4 {[%clk 0:00:52]}
48... Rg1 {[%clk 0:00:09.2]} 49. a5 {[%clk 0:00:51.8]} 49... Rf1+ {[%clk
0:00:09.5]} 50. Ke4 {[%clk 0:00:50.9]} 50... Rg1 {[%clk 0:00:10]} 51. Kf4 {[%clk
0:00:51.3]} 51... Rf1+ {[%clk 0:00:10.3]} 52. Ke4 {[%clk 0:00:51.7]} 52... Rg1
{[%clk 0:00:10.9]} 53. Kf4 {[%clk 0:00:49.7]} 1/2-1/2

[Event "*** Titled Tuesday Blitz"]
[Site "Chess.com"]
[Date "2020.05.05"]
[Round "1"]
[White "adriangschnitzer"]
[Black "GukeshDommaraju"]
[Result "0-1"]
[WhiteElo "2409"]
[BlackElo "2791"]
[TimeControl "180+1"]
[EndTime "10:07:25 PDT"]
[Termination "GukeshDommaraju won by resignation"]

1. e4 {[%clk 0:02:56.8]} 1... c5 {[%clk 0:02:59.7]} 2. Nf3 {[%clk 0:02:56.2]}
2... Nc6 {[%clk 0:02:59.5]} 3. d4 {[%clk 0:02:56.3]} 3... cxd4 {[%clk
0:02:59.3]} 4. Nxd4 {[%clk 0:02:57.2]} 4... Nf6 {[%clk 0:02:59.5]} 5. Nc3 {[%clk
0:02:56.1]} 5... e5 {[%clk 0:02:59.8]} 6. Ndb5 {[%clk 0:02:56.2]} 6... d6 {[%clk
0:03:00.2]} 7. Bg5 {[%clk 0:02:53.5]} 7... a6 {[%clk 0:03:00]} 8. Na3 {[%clk
0:02:53.2]} 8... b5 {[%clk 0:03:00]} 9. Nd5 {[%clk 0:02:53.1]} 9... Be7 {[%clk
0:03:00]} 10. Bxf6 {[%clk 0:02:52.7]} 10... Bxf6 {[%clk 0:03:00.4]} 11. c3
{[%clk 0:02:51.9]} 11... Bg5 {[%clk 0:03:00.4]} 12. Nc2 {[%clk 0:02:51.6]} 12...
Rb8 {[%clk 0:02:58.6]} 13. a3 {[%clk 0:02:40.1]} 13... O-O {[%clk 0:02:51.7]}
14. g3 {[%clk 0:02:36.5]} 14... Be6 {[%clk 0:02:42.4]} 15. Bg2 {[%clk
0:02:35.3]} 15... a5 {[%clk 0:02:27.6]} 16. O-O {[%clk 0:02:34]} 16... Ne7
{[%clk 0:02:26.8]} 17. Nce3 {[%clk 0:02:31.5]} 17... Bxe3 {[%clk 0:02:24.3]} 18.
Nxe3 {[%clk 0:02:28.9]} 18... Qb6 {[%clk 0:02:24]} 19. Kh1 {[%clk 0:02:03.7]}
19... b4 {[%clk 0:02:05.6]} 20. axb4 {[%clk 0:01:35.5]} 20... axb4 {[%clk
0:02:05.3]} 21. Qd2 {[%clk 0:01:35.6]} 21... bxc3 {[%clk 0:01:55.1]} 22. bxc3
{[%clk 0:01:35.5]} 22... Rfd8 {[%clk 0:01:52]} 23. f4 {[%clk 0:01:27.4]} 23...
f6 {[%clk 0:01:51.8]} 24. fxe5 {[%clk 0:01:16]} 24... dxe5 {[%clk 0:01:50.5]}
25. Nd5 {[%clk 0:01:16]} 25... Qc5 {[%clk 0:01:26.7]} 26. Rad1 {[%clk
0:00:47.8]} 26... Bxd5 {[%clk 0:01:18.3]} 27. exd5 {[%clk 0:00:46.6]} 27... Rd6
{[%clk 0:01:18.3]} 28. Bh3 {[%clk 0:00:16.8]} 28... Rbd8 {[%clk 0:01:11]} 29.
Qf2 {[%clk 0:00:16.7]} 29... Qxc3 {[%clk 0:00:52.2]} 30. Be6+ {[%clk 0:00:16.1]}
30... Kf8 {[%clk 0:00:47.6]} 31. Rc1 {[%clk 0:00:07.5]} 31... Qd3 {[%clk
0:00:44.6]} 32. Qa7 {[%clk 0:00:02.9]} 32... Qe4+ {[%clk 0:00:36.3]} 33. Kg1
{[%clk 0:00:02.9]} 33... Qd4+ {[%clk 0:00:34.7]} 34. Qxd4 {[%clk 0:00:03]} 34...
exd4 {[%clk 0:00:35.1]} 35. Rc7 {[%clk 0:00:03]} 35... d3 {[%clk 0:00:27]} 36.
Rd1 {[%clk 0:00:01.4]} 36... d2 {[%clk 0:00:26.5]} 37. Rxd2 {[%clk 0:00:01.2]}
37... Rxe6 {[%clk 0:00:26.4]} 38. dxe6 {[%clk 0:00:02.1]} 38... Rxd2 {[%clk
0:00:26.2]} 39. Rd7 {[%clk 0:00:02]} 39... Rxd7 {[%clk 0:00:23.4]} 40. exd7
{[%clk 0:00:02.9]} 40... Nc6 {[%clk 0:00:23.7]} 0-1